Cogmind - Beta 13 @@@ ROGUE MODE // 2024.04.20 @ 18:46:44 Player: Sand Result: Self-destructed Performance ------------- Evolutions (1) 500 Regions Visited (3) 600 Robots Destroyed (12) 60 Value Destroyed (298) 298 Prototype IDs (0) 0 Alien Tech Used (0) 0 Bonus (225) 225 TOTAL SCORE: 1683 Bonus ------- Pacifist 200 Follower Combat Kills 25 Cogmind --------- Core Integrity 353/400 Matter 225/300 Energy 265/265 System Corruption 5% Temperature Cool (0) Movement Rolling (95) Ox1 Location -9/Materials Parts ------- > --- POWER (1) -------- Reinforced Ion Engine > --- PROPULSION (2) --- Wheel > --- UTILITY (4) ------ Small Storage Unit Signal Interpreter Light Armor Plating > --- WEAPON (2) ------- Light Assault Rifle Light Assault Rifle > --- INVENTORY (8) ---- ECM Suite Rocket Launcher Mining Laser Peak State ------------ > --- POWER ------------ Ion Engine > --- PROPULSION ------- Aluminum Leg Carbon-fiber Leg > --- UTILITY ---------- Small Storage Unit Signal Interpreter Light Armor Plating Medium Armor Plating > --- WEAPON ----------- Light Assault Rifle Light Assault Rifle > --- INVENTORY -------- ECM Suite Grenade Launcher Mining Laser [Rating: 12] Favorites ----------- Power Ion Engine Engine Ion Engine Propulsion Wheel Leg Aluminum Leg Wheel Wheel Utility Signal Interpreter Device ECM Suite Storage Small Storage Unit Processor Signal Interpreter Protection Light Armor Plating Weapon Light Assault Rifle Ballistic Gun Light Assault Rifle Launcher Grenade Launcher Special Weapon Mining Laser Build | -11 -10 -10 -9 ------- Run | Yrd Mat Min Mat Slots Evolved 2 | . . . 2 Power . | . . . . Propulsion . | . . . . Utility 2 | . . . 2 Weapon . | . . . . Parts Attached 37 | 6 1 15 15 Power 3 | 1 . . 2 Engine 3 | 1 . . 2 Core . | . . . . Reactor . | . . . . Propulsion 11 | 2 . 7 2 Treads . | . . . . Leg 4 | . . 3 1 Wheel 7 | 2 . 4 1 Hover . | . . . . Flight . | . . . . Utility 8 | 1 1 2 4 Device 1 | . 1 . . Storage 2 | 1 . 1 . Processor 1 | . . 1 . Hackware . | . . . . Protection 4 | . . . 4 Artifact . | . . . . Weapon 15 | 2 . 6 7 Energy Gun . | . . . . Energy Cannon . | . . . . Ballistic Gun 10 | 2 . 3 5 Ballistic Cannon . | . . . . Launcher 3 | . . 1 2 Special Weapon 2 | . . 2 . Impact Weapon . | . . . . Slashing Weapon . | . . . . Piercing Weapon . | . . . . Special Melee Weapon . | . . . . Unidentified Prototypes . | . . . . Parts Lost 8 | . . 2 6 Power . | . . . . Propulsion 5 | . . 2 3 Utility 3 | . . . 3 Weapon . | . . . . Highest Loss Streak 3 | . . 2 3 To Critical Strikes . | . . . . Average Slot Usage (%) 82 | . 95 82 80 Engine 12 | . 14 14 11 Leg 5 | . . 1 9 Wheel 13 | . 28 24 3 Device 1 | . 9 1 . Storage 9 | . 14 5 11 Processor 10 | . . 12 11 Protection 7 | . . . 14 Ballistic Gun 20 | . 28 19 20 Naked Turns . | . . . . Heaviest Build 23 | 13 15 15 23 Greatest Support 25 | 20 20 25 25 Greatest Overweight (x) 6 | . . 1 6 Average Overweight (x) . | . . . 1 Largest Inventory Capacity 8 | 8 8 8 8 Average Capacity 7 | 6 8 6 8 Most Carried 5 | . 2 5 5 Average Carried 3 | . . 3 3 Final Capacity 8 | 8 8 8 8 Final Carried 3 | . 2 3 3 Class Distribution -------------------- 84% | Mutant 15% | Scavenger-Mutant Dominant Class ---------------- Mutant | -10/Materials Mutant | -10/Mines Mutant | -9/Materials Resources | -11 -10 -10 -9 ----------- Run | Yrd Mat Min Mat Matter Collected 741 | 230 . 269 242 Remotely . | . . . . Salvage Created 438 | . . 74 364 Parts 34 | . . . 34 Haulers Intercepted . | . . . . Recyclers Shooed . | . . . . Parts Field Recycled . | . . . . Retrieved Matter . | . . . . Parts Self-Destructed . | . . . . Prevented . | . . . . Kills | -11 -10 -10 -9 ------- Run | Yrd Mat Min Mat Combat Hostiles Destroyed 23 | . . 14 9 Guns 9 | . . 3 6 Cannons 1 | . . 1 . AOE 13 | . . 10 3 Classes Destroyed 7 | . . 1 6 Worker 2 | . . . 2 Builder 1 | . . . 1 Swarmer 3 | . . . 3 Grunt 3 | . . . 3 Brawler 1 | . . . 1 Sentry 2 | . . . 2 Assembled 14 | . . 14 . Best Kill Streak 12 | . . 12 4 Combat Bots Only 12 | . . 12 2 Max Kills in Single Turn 3 | . . 3 3 Gunslinging . | . . . . Exploded 3 | . . 3 2 Melee . | . . . . Uniques/NPCs Destroyed . | . . . . Combat | -11 -10 -10 -9 -------- Run | Yrd Mat Min Mat Hostile Shots Fired 115 | . 1 40 74 Missed 35 | . . 13 22 Damage Taken 1337 | . 10 527 800 Core 230 | . 10 173 47 Absorbed by Shields . | . . . . Core Remaining (%) 63 | 100 . 26 . Volleys Fired 97 | . . 34 63 Largest 2 | . . 2 2 Hottest 120 | . . 120 53 Shots Fired 145 | . . 43 102 Gun 134 | . . 35 99 Cannon . | . . . . Launcher 9 | . . 6 3 Special 2 | . . 2 . Kinetic 134 | . . 35 99 Thermal 2 | . . 2 . Explosive 9 | . . 6 3 Electromagnetic . | . . . . Robot Hit Streak 7 | . . 6 7 Robot Miss Streak 4 | . . 4 4 Penetration Max . | . . . . Secondary Targets . | . . . . Shots Hit Robots 74 | . . 22 52 Core Hits 51 | . . 31 20 Critical Kills . | . . . . Critical Parts Destroyed 1 | . . . 1 Critical Strikes 1 | . . . 1 Destroy 1 | . . . 1 Melee Attacks . | . . . . Impact . | . . . . Slashing . | . . . . Piercing . | . . . . Sneak Attacks . | . . . . Combat Hostiles . | . . . . Follow-up Attacks . | . . . . Damage Inflicted 1362 | . . 762 600 Guns 568 | . . 164 404 Cannons . | . . . . Explosions 770 | . . 574 196 Melee . | . . . . Ramming . | . . . . Kinetic 568 | . . 164 404 Thermal 24 | . . 24 . Explosive 770 | . . 574 196 Electromagnetic . | . . . . Impact . | . . . . Slashing . | . . . . Piercing . | . . . . Highest Corruption 5 | . . . 5 Average Corruption 5 | . . . 5 Corruption Purged . | . . . . Corruption Blocked . | . . . . Effects 12 | . . . 12 Message Errors 4 | . . . 4 Matter Fused 4 | . . . 4 Heat Flow Errors 1 | . . . 1 Energy Discharges 2 | . . . 2 Data Loss (minor) 1 | . . . 1 Overload Shots . | . . . . Overflow Damage 39 | . . 39 . Projectiles 19 | . . 19 . Explosions 20 | . . 20 . Melee . | . . . . Knockbacks . | . . . . Impact . | . . . . Kinetic . | . . . . Secondary . | . . . . Self-Inflicted Damage 144 | . . . 144 Shots 2 | . . . 2 Rammed . | . . . . Targets Rammed . | . . . . Kicked . | . . . . Crushed . | . . . . Highest Temperature 187 | . . 40 187 Average Temperature 21 | . . 16 22 Received Heat Transfer 247 | . 6 40 201 Siege Activations . | . . . . Robots Corrupted . | . . . . Combat Hostiles . | . . . . Parts Fried . | . . . . Impact Corruptions . | . . . . Robots Melted . | . . . . Combat Hostiles . | . . . . Parts Melted . | . . . . Heat Transferred 50 | . . 50 . Parts Sabotaged . | . . . . Parts Stolen . | . . . . Parts Stripped . | . . . . Power Chain Reactions . | . . . . Alert | -11 -10 -10 -9 ------- Run | Yrd Mat Min Mat Peak Influence 290 | . . 80 290 Initial . | . . . . Average 87 | . . 34 140 Maximum Alert Level 1 | . . . 1 Low Security (%) 89 | 100 100 100 80 Level 1 10 | . . . 19 Level 2 . | . . . . Level 3 . | . . . . Level 4 . | . . . . Level 5 . | . . . . High Security . | . . . . Max Security . | . . . . Squads Dispatched . | . . . . Investigation . | . . . . Extermination . | . . . . Reinforcement . | . . . . Assault . | . . . . Garrison . | . . . . Intercept . | . . . . Searches Triggered . | . . . . Construction Impeded . | . . . . Haulers Reinforced . | . . . . Active Scanning Responses . | . . . . Cargo Convoy Interrupts . | . . . . Stealth | -11 -10 -10 -9 --------- Run | Yrd Mat Min Mat Distress Signals 1 | . . . 1 Communications Jammed . | . . . . Distress Signals . | . . . . Times Spotted 31 | . 3 16 12 Peak Tracking Total 8 | . 2 8 4 Tactical Retreats 3 | . 1 1 1 Traps | -11 -10 -10 -9 ------- Run | Yrd Mat Min Mat Traps Triggered . | . . . . Indirectly . | . . . . Trap Hack Attempts . | . . . . Triggered . | . . . . Disarmed 5 | . 5 . . Reprogrammed . | . . . . Reused . | . . . . Traps Extracted . | . . . . Installed . | . . . . Triggered . | . . . . Machines | -11 -10 -10 -9 ---------- Run | Yrd Mat Min Mat Machines Disabled 2 | . . . 2 Max in Single Turn 2 | . . . 2 Machines Repaired . | . . . . Machines Dismantled . | . . . . Machines Sabotaged . | . . . . Overloaded Fab Kills . | . . . . Hacking | -11 -10 -10 -9 --------- Run | Yrd Mat Min Mat Machines Accessed 4 | . 1 . 3 Terminals 3 | . 1 . 2 Fabricators . | . . . . Repair Stations . | . . . . Recycling Units . | . . . . Scanalyzers 1 | . . . 1 Garrison Access . | . . . . Total Hacks 16 | . 4 . 12 Successful 7 | . 1 . 6 Failed 9 | . 3 . 6 Catastrophic 4 | . . . 4 Database Lockouts . | . . . . Manual . | . . . . Terminals 14 | . 4 . 10 Fabricators . | . . . . Repair Stations . | . . . . Recycling Units . | . . . . Scanalyzers 2 | . . . 2 Garrison Access . | . . . . Terminal Hacks 5 | . 1 . 4 Record 4 | . . . 4 Disarm Traps 1 | . 1 . . Fabricator Hacks . | . . . . Repair Station Hacks . | . . . . Recycling Unit Hacks . | . . . . Scanalyzer 2 | . . . 2 Insert Component 1 | . . . 1 Analyze 1 | . . . 1 Garrison Access Hacks . | . . . . Unauthorized Hacks . | . . . . Terminals . | . . . . Fabricators . | . . . . Repair Stations . | . . . . Recycling Units . | . . . . Scanalyzers . | . . . . Garrison Access . | . . . . Data Cores Recovered . | . . . . Used . | . . . . Hacking Detections 4 | . 1 . 3 Full Trace Events 1 | . . . 1 Feedback Events . | . . . . Feedback Blocked . | . . . . Robot Schematics Acquired . | . . . . Robots Built . | . . . . Authchips . | . . . . Time . | . . . . Total Robot Build Rating . | . . . . Part Schematics Acquired 1 | . . . 1 Parts Built . | . . . . Authchips . | . . . . Time . | . . . . Total Part Build Rating . | . . . . Parts Repaired . | . . . . Time . | . . . . Parts Recycled . | . . . . Recycled Matter . | . . . . Retrieved Matter . | . . . . Retrieved Components . | . . . . Parts Scanalyzed 1 | . . . 1 Part Schematics Acquired 1 | . . . 1 Parts Damaged . | . . . . Bothacking | -11 -10 -10 -9 ------------ Run | Yrd Mat Min Mat Used RIF Installer . | . . . . Robots Hacked . | . . . . Non-combat . | . . . . Combat . | . . . . Robot Hacks Applied . | . . . . Relay Couplers Released . | . . . . Fabnet Peak Effective % . | . . . . Robots Rewired . | . . . . Allies Hacked . | . . . . Hacks Repelled . | . . . . Allies | -11 -10 -10 -9 -------- Run | Yrd Mat Min Mat Total Allies 1 | . . 1 . Largest Group 1 | . . 1 . Highest-Rated Group 31 | . . 31 . Highest-Rated Ally 31 | . . 31 . Total Orders . | . . . . Ally Attacks 10 | . . 10 . Total Damage 146 | . . 146 . Kills 2 | . . 2 . Allies Corrupted . | . . . . Allies Melted . | . . . . Intel | -11 -10 -10 -9 ------- Run | Yrd Mat Min Mat Robot Analysis Total . | . . . . Derelict Logs Recovered 1 | . . 1 . Drone Launches . | . . . . Drone Recoveries . | . . . . Exploration | -11 -10 -10 -9 ------------- Run | Yrd Mat Min Mat Turns Passed 1251 | 38 98 443 672 Spaces Moved 878 | 38 119 417 304 Core 52 | 5 . 9 38 Treads . | . . . . Legs 143 | . . 16 127 Wheels 683 | 33 119 392 139 Hover . | . . . . Flight . | . . . . Fastest Speed 50 | 50 80 80 95 Average Speed 109 | 76 80 81 162 Slowest Speed 350 | 80 80 120 350 Overloaded Moves . | . . . . Propulsion Burnouts . | . . . . Robots Hopped . | . . . . Cave-ins Triggered . | . . . . Exploration Rate (%) 26 | 4 19 57 27 Regions Visited 3 Branch Regions 1 Pre-discovered Areas 1 | . . 1 . Known Exits Taken 1 | . . 1 . Unknown Exits Taken 2 | 1 1 . . Scrap Searched . | . . . . Spaces Dug 1 | . . 1 . Terrain Destroyed 86 | . . 41 45 Melee . | . . . . Projectile 1 | . . 1 . AOE 85 | . . 40 45 Terrain Rammed . | . . . . Walls Destroyed . | . . . . Machines Disabled . | . . . . Actions | -11 -10 -10 -9 --------- Run | Yrd Mat Min Mat Total 1037 | 43 121 478 395 Wait 5 | . . . 5 Move 875 | 37 118 416 304 Hop . | . . . . Pick Up 4 | . 2 1 1 Fast Attach 18 | 6 1 4 7 Attach 9 | . . 7 2 Detach 9 | . . 7 2 Swap 10 | . . 4 6 Drop 10 | . . 5 5 Fire 97 | . . 34 63 Melee . | . . . . Ram . | . . . . Kick . | . . . . Crush . | . . . . Escape Stasis . | . . . . Rewire . | . . . . Trap . | . . . . Miscellaneous . | . . . . Route ------- -11/Scrapyard -10/Materials -10/Mines -9/Materials (discovered 1 exit: [*Mat]) History --------- Turn | Location | Event 4 | -11/Scrapyard | Discovered new exit (range 15) 39 | -11/Scrapyard | Entered Materials 124 | -10/Materials | Discovered new exit (range 7) 137 | -10/Materials | Entered Mines 140 | -10/Mines | Received a Mining Laser from a helpful Derelict 199 | -10/Mines | Met a Derelict bent on vengeance 284 | -10/Mines | Learned location of Zion (-7) 294 | -10/Mines | Assembled infested the area 319 | -10/Mines | Build established: Mutant 370 | -10/Mines | Destroyed 12 combat bots 413 | -10/Mines | Core integrity fell below 50% 523 | -10/Mines | Discovered new exit (range 15) 536 | -10/Mines | Identified exit to Materials 580 | -10/Mines | Entered Materials 580 | -9/Materials | Evolved 2 slots: Utility x2 959 | -9/Materials | Lost 3 parts (1n2u) 997 | -9/Materials | Discovered new exit (range 16) 1252 | -9/Materials | Self-destructed Last Messages --------------- System corrupted: Component data lost. DPZZJYTVJWR=FAQ|X0UM4B7ZENOEDD1ANB S-10 Pest destroyed. Dropped Lgt. Assault Rifle. 9EZ|7|M T7PD=UNUP HBVL Acquired 11 matter. K-01 Serf collects debris. Connecting with Terminal... K-01 Serf collects debris. Connecting with Repair Station... Connecting with Repair Station... 01186_ System corrupted: Heat flow error (+203). 01195_ Connecting with Repair Station... 01214_ System corrupted: Matter fused (-7). 01238_ System corrupted: Matter fused (-10). 01242_ Acquired 17 matter. Map ----- +----------------------------------------------------+ | ???????????????????????????????????? | | ???????????????????????????????????? | | ???????????????????????????????????? | | ???????????????????????????????????? | | ???????????????????????????????????? | | ???????????????????????????????????? | | ???????????????????????????????????? | | ???????????????????????????????????? | | ???????????????????????????????????? | | ???????????????????????????????????? | | ?????????????????????????????#####?? | | ?????????????????????????????# ?? | | ?????????????????????????????# ?? | | ?????????????????????????????# ?? | | ????# ?????????????????????# ### | | ????# ##########???????????# # | | ????# # #???????????# # | | ????# # """#???????????# # | | ????# # """#???????????# # | | ????# # """#???????????# + " | | ????# # #???????????# # " | | ????# # ! """#???????????# # " | | ????# # """#???????????# # | | ????# # """#???????????# ### | | ????# # #??????????## ##? | | ????# ###@################# ## | | ????# | | ????# % | | ????# % | | ????# ##########+########## ## | | ????# #????# T #??#####+#### | | ????# #????# #??# | | ????# #????#]= #??# | | ????#####????#]= #??# """ | | ?????????????# """ #??# """ | | ?????????????# """ #??#" ! """ | | ?????????????# """ #??#T | | ?????????????# #??#" | | ?????????????###########??# | | ??????????????????????????########## | | ???????????????????????????????????? | | ???????????????????????????????????? | | ???????????????????????????????????? | | ???????????????????????????????????? | | ???????????????????????????????????? | | ???????????????????????????????????? | | ???????????????????????????????????? | | ???????????????????????????????????? | | ???????????????????????????????????? | | ???????????????????????????????????? | +----------------------------------------------------+ Best States ------------- Heat Dissipation 28 Energy Generation 12 Energy Capacity 265 Matter Stores 300 Matter Capacity 300 Sight Range 16 Terrain Scan Density 10 ECM Strength 1 Armor Coverage 375 Evasion (%) 55 Item Schematics ----------------- Rocket Launcher | -9/Materials | Scanalyzed Robot Schematics ------------------ None Fabricated ------------ Nothing Alien Tech Used ----------------- None Achievements -------------- None Challenges ------------ None Game ------ Seed OmegaFortressBeamcaster Manual? 0 Play Time 00:28:24 Cumulative 6.1 hours Start 2024.04.19 @ 10:27:41 End 2024.04.20 @ 18:46:44 Sessions 7 Manual Loads 0 Difficulty Rogue Special Mode None Game No. 14 Rogue 14 Adventurer 0 Explorer 0 Win Type - Total 0 Types 0/0/0/0/0/0/0/0/0 Lore% 8 Gallery% 12 Achievement% 12 Wizard Run 0 Options --------- Layout 2 ASCII 0 Keyboard 0 Movement Mouse Keybinds 0 Fullscreen 1 Font 24/Smallcaps Map View 50x44 Zoom Use 0% Tactical HUD 1 Map Filters NONE Filters NONE Steam 1 RUN: 331962d1-469e-4421-9920-388bff9a2dc3